fUSD/lending_fUSD_20251129
["ID","MTS","AMOUNT","RATE_DAILY","PERIOD"]
[395064380,1764393041191,-200.0,0.00015963,2]
[395064381,1764393041200,-500.0,0.00015963,2]
[395064382,1764393041209,-151.0,0.00015963,2]
[395064383,1764393041218,-151.0,0.00015963,2]
[395064384,1764393041229,-151.0,0.00015963,2]
[395064385,1764393041239,-151.0,0.00015963,2]
[395064386,1764393041250,-151.0,0.00015963,2]
[395064387,1764393041260,-151.0,0.00015963,2]
[395064388,1764393041270,-151.0,0.00015963,2]
[395064389,1764393041280,-151.0,0.00015963,2]
[395064390,1764393041291,-151.0,0.00015963,2]
[395064391,1764393041301,-151.0,0.00015963,2]
[395064392,1764393041310,-151.0,0.00015963,2]
[395064393,1764393041319,-151.0,0.00015963,2]
[395064394,1764393041328,-500.0,0.00015973,2]
[395064395,1764393041337,-182.61215327,0.00015973,2]
[395064396,1764393041347,-500.0,0.00015973,2]
[395064397,1764393041355,-500.0,0.00015973,2]
[395064398,1764393041365,-500.0,0.00015973,2]
[395064399,1764393041374,-2000.0,0.00015973,2]
[395064400,1764393041388,-200.0,0.00015973,2]
[395064401,1764393041397,-150.0,0.00016016,2]
[395064402,1764393041407,-166.66,0.00016057,2]
[395064403,1764393041416,-2230.0,0.0001606,2]
[395064404,1764393041426,-8539.320011,0.00016088,2]
[395064405,1764393041436,-200.0,0.00016088,2]
[395064406,1764393041445,-200.0,0.00016133,2]
[395064407,1764393041455,-150.0,0.00016137,2]
[395064408,1764393041465,-150.0,0.00016137,2]
[395064409,1764393041476,-150.0,0.00016137,2]
[395064410,1764393041485,-2230.0,0.00016146,2]
[395064411,1764393041495,-322.45,0.00016199,2]
[395064412,1764393041504,-193.0,0.00016225,2]
[395064413,1764393041514,-319.83873296,0.00016225,2]
[395064414,1764393041524,-2230.0,0.00016257,2]
[395064415,1764393041534,-150.0,0.00016258,2]
[395064416,1764393041543,-200.0,0.00016294,2]
[395064417,1764393041552,-2060.45510737,0.00016305,2]
[395064418,1764393041562,-150.0,0.000164,2]
[395064419,1764393041572,-210.0,0.000164,2]
[395064420,1764393041581,-240.22599925,0.000164,2]
[395064421,1764393041590,-15743.9778,0.00016411,2]
[395064422,1764393041599,-150.0,0.0001642,2]
[395064423,1764393041609,-150.0,0.00016438,2]
[395064424,1764393041618,-969.0,0.00016438,2]
[395064425,1764393041628,-500.0,0.00016438,2]
[395064426,1764393041637,-150.0,0.00016438,2]
[395064427,1764393041646,-1722.78,0.00016438,2]
[395064428,1764393041655,-3200.34627758,0.00016443,2]
[395064429,1764393041663,-298.18,0.00016444,2]
[395064430,1764393041673,-151.0,0.00016448,2]
[395064431,1764393041682,-666.0,0.00016448,2]
[395064432,1764393041692,-200.0,0.00016457,2]
[395064433,1764393041702,-1859.0,0.00016469,2]
[395064434,1764393041712,-150.0,0.00016501,2]
[395064435,1764393041721,-1518.08,0.00016511,2]
[395064436,1764393041730,-500.0,0.00016511,2]
[395064437,1764393041739,-500.0,0.00016511,2]
[395064438,1764393041748,-500.0,0.00016511,2]
[395064439,1764393041758,-500.0,0.00016511,2]
[395064440,1764393041767,-150.0,0.00016511,2]
[395064441,1764393041776,-500.0,0.00016511,2]
[395064442,1764393041785,-150.0,0.00016511,2]
[395064443,1764393041794,-500.0,0.00016511,2]
[395064444,1764393041803,-500.0,0.00016511,2]
[395064445,1764393041812,-150.0,0.00016511,2]
[395064446,1764393041821,-150.0,0.00016511,2]
[395064447,1764393041830,-574.12855637,0.00016511,2]
[395064448,1764393041839,-151.0,0.00016511,2]
[395064449,1764393041848,-200.0,0.00016511,2]
[395064450,1764393041857,-151.0,0.00016511,2]
[395064451,1764393041866,-620.0,0.00016511,2]
[395064452,1764393041875,-200.0,0.00016511,2]
[395064453,1764393041885,-618.45839124,0.00016519,2]
[395064454,1764393041894,-483.0831553,0.00016519,2]
[395064455,1764393041903,-426.52340663,0.00016519,2]
[395064456,1764393041912,-157.7206304,0.00016519,2]
[395064457,1764393041921,-500.0,0.00016519,2]
[395064458,1764393041931,-500.0,0.00016519,2]
[395064459,1764393041940,-500.0,0.00016519,2]
[395064460,1764393041949,-500.0,0.00016519,2]
[395064461,1764393041959,-500.0,0.00016519,2]
[395064462,1764393041968,-500.0,0.00016519,2]
[395064463,1764393041977,-500.0,0.00016519,2]
[395064464,1764393041986,-500.0,0.00016519,2]
[395064465,1764393041994,-500.0,0.00016519,2]
[395064466,1764393042004,-500.0,0.00016519,2]
[395064467,1764393042013,-500.0,0.00016519,2]
[395064468,1764393042022,-500.0,0.00016519,2]
[395064469,1764393042031,-500.0,0.00016519,2]
[395064470,1764393042040,-500.0,0.00016519,2]
[395064471,1764393042049,-500.0,0.00016519,2]
[395064472,1764393042058,-500.0,0.00016519,2]
[395064473,1764393042067,-500.0,0.00016519,2]
[395064474,1764393042076,-500.0,0.00016519,2]
[395064475,1764393042085,-500.0,0.00016519,2]
[395064476,1764393042095,-500.0,0.00016519,2]
[395064477,1764393042104,-500.0,0.00016519,2]
[395064478,1764393042114,-500.0,0.00016519,2]
[395064479,1764393042123,-500.0,0.00016519,2]
[395064480,1764393042134,-500.0,0.00016519,2]
[395064481,1764393042144,-172.47639373,0.00016519,2]
[395064482,1764393042154,-500.0,0.00016519,2]
[395064483,1764393042163,-500.0,0.00016519,2]
[395064484,1764393042173,-500.0,0.00016519,2]
[395064485,1764393042183,-500.0,0.00016519,2]
[395064486,1764393042193,-500.0,0.00016519,2]
[395064487,1764393042202,-500.0,0.00016519,2]
[395064488,1764393042212,-500.0,0.00016519,2]
[395064489,1764393042220,-298.55328261,0.00016521,2]
[395064490,1764393042230,-1000.0,0.00016521,2]
[395064491,1764393042240,-1000.0,0.00016521,2]
[395064492,1764393042250,-1000.0,0.00016521,2]
[395064493,1764393042259,-1000.0,0.00016521,2]
[395064494,1764393042269,-504.10751524,0.00016521,2]
[395064495,1764393042278,-1000.0,0.00016521,2]
[395064496,1764393042287,-10081.0322039,0.00016545,2]
[395064497,1764393042296,-10866.04072063,0.00016548,2]
[395064498,1764393042305,-500.0,0.00016554,2]
[395064499,1764393042314,-152.79299703,0.00016554,2]
[395064500,1764393042324,-200.13285561,0.00016554,2]
[395064501,1764393042333,-150.0,0.00016554,2]
[395064502,1764393042342,-151.92540351,0.00016554,2]
[395064503,1764393042351,-150.0,0.00016554,2]
[395064504,1764393042361,-150.0,0.00016554,2]
[395064505,1764393042370,-152.6737811,0.00016554,2]
[395064506,1764393042379,-199.28004944,0.00016554,2]
[395064507,1764393042393,-155.29376756,0.00016554,2]
[395064508,1764393042402,-151.91866068,0.00016554,2]
[395064509,1764393042412,-166.66,0.00016554,2]
[395064510,1764393042421,-150.0,0.00016562,2]
[395064511,1764393042430,-944.42401873,0.00016574,2]
[395064512,1764393042440,-150.0,0.00016575,2]
[395064513,1764393042449,-969.0,0.00016575,2]
[395064514,1764393042459,-500.0,0.00016575,2]
[395064515,1764393042468,-150.0,0.00016575,2]
[395064516,1764393042477,-8654.1418743,0.00016587,2]
[395064517,1764393042486,-10866.04072063,0.00016587,2]
[395064518,1764393042496,-2230.0,0.0001659,2]
[395064519,1764393042506,-2230.0,0.00016614,2]
[395064520,1764393042515,-2230.0,0.0001662,2]
[395064521,1764393042525,-200.0,0.00016622,2]
[395064522,1764393042534,-10866.04072063,0.00016626,2]
[395064523,1764393042544,-300.0,0.00016635,2]
[395064524,1764393042554,-500.0,0.00016648,2]
[395064525,1764393042563,-500.0,0.00016648,2]
[395064526,1764393042572,-500.0,0.00016648,2]
[395064527,1764393042582,-500.0,0.00016648,2]
[395064528,1764393042591,-500.0,0.00016648,2]
[395064529,1764393042601,-500.0,0.00016648,2]
[395064530,1764393042610,-500.0,0.00016648,2]
[395064531,1764393042619,-150.0,0.00016648,2]
[395064532,1764393042629,-1000.0,0.00016666,2]
[395064533,1764393042638,-500.0,0.00016691,2]
[395064534,1764393042652,-155.0383737,0.00016691,2]
[395064535,1764393042661,-150.0,0.00016691,2]
[395064536,1764393042670,-265.58661555,0.00016691,2]
[395064537,1764393042679,-150.0,0.00016712,2]
[395064538,1764393042689,-969.0,0.00016712,2]
[395064539,1764393042698,-500.0,0.00016712,2]
[395064540,1764393042708,-226.93276728,0.00016712,2]
[395064541,1764393042717,-1859.0,0.00016724,2]
[395064542,1764393042726,-150.0,0.00016744,2]
[395064543,1764393042736,-163.978,0.00016778,2]
[395064544,1764393042745,-2056.912,0.00016778,2]
[395064545,1764393042754,-500.0,0.00016785,2]
[395064546,1764393042763,-592.64855984,0.00016785,2]
[395064547,1764393042772,-500.0,0.00016785,2]
[395064548,1764393042781,-500.0,0.00016785,2]
[395064549,1764393042790,-500.0,0.00016785,2]
[395064550,1764393042800,-471.89568788,0.00016785,2]
[395064551,1764393042809,-500.0,0.00016785,2]
[395064552,1764393042818,-150.0,0.00016785,2]
[395064553,1764393042827,-1518.08,0.00016785,2]
[395064554,1764393042836,-2230.0,0.00016797,2]
[395064555,1764393042845,-9154.66965579,0.00016799,2]
[395064556,1764393042854,-583.908905,0.000168,2]
[395064557,1764393042863,-11392.20847151,0.000168,2]
[395064558,1764393042872,-201.0,0.000168,2]
[395064560,1764393042881,-2230.0,0.00016805,2]
[395064561,1764393042890,-11392.2084715,0.00016811,2]
[395064562,1764393042899,-11392.2084715,0.00016822,2]
[395064563,1764393042908,-500.0,0.00016828,2]
[395064564,1764393042917,-150.0,0.00016828,2]
[395064565,1764393042926,-1859.0,0.00016831,2]
[395064566,1764393042936,-11392.2084715,0.00016833,2]
[395064567,1764393042945,-11392.2084715,0.00016844,2]
[395064568,1764393042954,-150.0,0.00016849,2]
[395064569,1764393042964,-969.0,0.00016849,2]
[395064570,1764393042973,-500.0,0.00016849,2]
[395064571,1764393042983,-11392.2084715,0.00016856,2]
[395064572,1764393042991,-11392.2084715,0.00016867,2]
[395064573,1764393043001,-11392.2084715,0.00016878,2]
[395064574,1764393043009,-2230.0,0.00016887,2]
[395064575,1764393043228,-11392.2084715,0.00016889,2]
[395064576,1764393043274,-151.0,0.00016897,2]
[395064577,1764393043284,-182.3737049,0.00016898,2]
[395064578,1764393043294,-243.19360319,0.00016898,2]
[395064579,1764393043305,-500.0,0.00016898,2]
[395064580,1764393043315,-248.94687703,0.00016898,2]
[395064581,1764393043324,-229.03609911,0.00016898,2]
[395064582,1764393043333,-289.41015911,0.00016899,2]
[395064583,1764393043343,-500.0,0.00016899,2]
[395064584,1764393043352,-500.0,0.00016899,2]
[395064585,1764393043361,-500.0,0.00016899,2]
[395064586,1764393043371,-250.0,0.00016899,2]
[395064587,1764393043382,-250.0,0.00016899,2]
[395064588,1764393043392,-250.0,0.00016899,2]
[395064589,1764393043402,-250.0,0.00016899,2]
[395064590,1764393043411,-250.0,0.00016899,2]
[395064591,1764393043421,-250.0,0.00016899,2]
[395064592,1764393043430,-250.0,0.00016899,2]
[395064593,1764393043440,-250.0,0.00016899,2]
[395064594,1764393043449,-250.0,0.00016899,2]
[395064595,1764393043459,-250.0,0.00016899,2]
[395064596,1764393043469,-250.0,0.00016899,2]
[395064597,1764393043478,-250.0,0.00016899,2]
[395064598,1764393043487,-250.0,0.00016899,2]
[395064599,1764393043496,-250.0,0.00016899,2]
[395064600,1764393043506,-250.0,0.00016899,2]
[395064601,1764393043515,-250.0,0.00016899,2]
[395064602,1764393043523,-250.0,0.00016899,2]
[395064603,1764393043532,-250.0,0.00016899,2]
[395064604,1764393043542,-250.0,0.00016899,2]
[395064605,1764393043552,-250.0,0.00016899,2]
[395064606,1764393043560,-1319.34,0.000169,2]
[395064607,1764393043569,-147676.04808332,0.000169,2]
[395064609,1764393043645,-912.68264796,0.000169,2]
[395064610,1764393043655,-1380.79252918,0.000169,2]
[395064611,1764393043666,-328.545,0.000169,2]
[395064612,1764393043677,-751.00955002,0.000169,2]
[395064613,1764393043700,-608950.92218952,0.000169,2]
[395064614,1764393043709,-1000.0,0.000169,2]
[395064615,1764393043718,-2852.7978,0.000169,2]
[395064616,1764393043729,-600.0,0.000169,2]
[395064617,1764393043738,-704.43617837,0.000169,2]
[395064618,1764393043748,-11392.2084715,0.000169,2]
[395064619,1764393043757,-1052.66227505,0.000169,2]
[395064620,1764393043765,-500.0,0.000169,2]
[395064621,1764393043775,-500.0,0.000169,2]
[395064622,1764393043785,-500.0,0.000169,2]
[395064623,1764393043795,-500.0,0.000169,2]
[395064624,1764393043805,-500.0,0.000169,2]
[395064625,1764393043814,-500.0,0.000169,2]
[395064626,1764393043824,-500.0,0.000169,2]
[395064627,1764393043833,-468.47698181,0.000169,2]
[395064628,1764393043842,-8802.0,0.000169,2]
[395064629,1764393043851,-500.0,0.00016922,2]
[395064630,1764393043860,-500.0,0.00016922,2]
[395064631,1764393043869,-500.0,0.00016922,2]
[395064632,1764393043879,-500.0,0.00016922,2]
[395064633,1764393043887,-500.0,0.00016922,2]
[395064634,1764393043897,-150.0,0.00016922,2]
[395064635,1764393043906,-239.0,0.00016935,2]
[395064636,1764393043915,-6127.0,0.00016959,2]
[395064637,1764393043924,-500.0,0.00016965,2]
[395064638,1764393043934,-230.64385222,0.00016965,2]
[395064639,1764393043943,-584.40163245,0.0001697,2]
[395064640,1764393043953,-1000.0,0.0001697,2]
[395064641,1764393043963,-1000.0,0.0001697,2]
[395064642,1764393043972,-1336.57021784,0.0001697,2]
[395064643,1764393043981,-595.94847156,0.00016973,2]
[395064644,1764393043990,-500.0,0.00016973,2]
[395064645,1764393044000,-500.0,0.00016973,2]
[395064646,1764393044009,-500.0,0.00016973,2]
[395064647,1764393044018,-500.0,0.00016973,2]
[395064648,1764393044027,-500.0,0.00016973,2]
[395064649,1764393044037,-500.0,0.00016973,2]
[395064650,1764393044047,-179.09525737,0.00016973,2]
[395064651,1764393044056,-500.0,0.00016973,2]
[395064652,1764393044065,-500.0,0.00016973,2]
[395064653,1764393044074,-500.0,0.00016973,2]
[395064654,1764393044083,-333.4830249,0.00016973,2]
[395064655,1764393044092,-160.05339585,0.00016973,2]
[395064656,1764393044101,-500.0,0.00016973,2]
[395064657,1764393044110,-500.0,0.00016973,2]
[395064658,1764393044120,-500.0,0.00016973,2]
[395064659,1764393044131,-160.05288481,0.00016973,2]
[395064660,1764393044141,-161.88708279,0.00016973,2]
[395064661,1764393044152,-500.0,0.00016973,2]
[395064662,1764393044162,-160.0532438,0.00016973,2]
[395064663,1764393044172,-500.0,0.00016973,2]
[395064664,1764393044182,-500.0,0.00016973,2]
[395064665,1764393044191,-160.05338935,0.00016973,2]
[395064666,1764393044202,-500.0,0.00016973,2]
[395064667,1764393044212,-160.05303476,0.00016973,2]
[395064668,1764393044222,-200.03465566,0.00016973,2]
[395064669,1764393044233,-500.0,0.00016973,2]
[395064670,1764393044243,-500.0,0.00016973,2]
[395064671,1764393044253,-500.0,0.00016973,2]
[395064672,1764393044263,-500.0,0.00016973,2]
[395064673,1764393044272,-587.05679393,0.00016973,2]
[395064674,1764393044282,-500.0,0.00016973,2]
[395064675,1764393044291,-161.52693208,0.00016973,2]
[395064676,1764393044300,-500.0,0.00016973,2]
[395064677,1764393044309,-500.0,0.00016973,2]
[395064678,1764393044318,-500.0,0.00016973,2]
[395064679,1764393044328,-160.05340156,0.00016973,2]
[395064680,1764393044338,-150.0,0.00016973,2]
[395064681,1764393044347,-306.08212615,0.00016973,2]
[395064682,1764393044356,-500.0,0.00016973,2]
[395064683,1764393044365,-500.0,0.00016973,2]
[395064684,1764393044374,-325.08835387,0.00016973,2]
[395064685,1764393044386,-530.4877678,0.00016973,2]
[395064686,1764393044396,-500.0,0.00016973,2]
[395064687,1764393044404,-156.0371633,0.00016973,2]
[395064688,1764393044414,-528.31342299,0.00016973,2]
[395064689,1764393044423,-219.56166513,0.00016973,2]
[395064690,1764393044432,-501.32291125,0.00016973,2]
[395064691,1764393044442,-160.05178738,0.00016973,2]
[395064692,1764393044451,-500.0,0.00016973,2]
[395064693,1764393044461,-160.05339098,0.00016973,2]
[395064694,1764393044470,-500.0,0.00016973,2]
[395064695,1764393044479,-502.62252388,0.00016973,2]
[395064696,1764393044488,-547.83641939,0.00016973,2]
[395064697,1764393044498,-507.84911931,0.00016973,2]
[395064698,1764393044507,-501.27985406,0.00016973,2]
[395064699,1764393044516,-507.56447306,0.00016973,2]
[395064700,1764393044525,-500.0,0.00016973,2]
[395064701,1764393044534,-500.0,0.00016973,2]
[395064702,1764393044543,-160.05429824,0.00016973,2]
[395064703,1764393044553,-500.0,0.00016973,2]
[395064704,1764393044562,-500.0,0.00016973,2]
[395064705,1764393044571,-160.27724769,0.00016973,2]
[395064706,1764393044580,-500.0,0.00016973,2]
[395064707,1764393044589,-500.0,0.00016973,2]
[395064708,1764393044598,-501.37205066,0.00016973,2]
[395064709,1764393044607,-160.04790808,0.00016973,2]
[395064710,1764393044618,-500.0,0.00016973,2]
[395064711,1764393044627,-500.0,0.00016973,2]
[395064712,1764393044636,-500.0,0.00016973,2]
[395064713,1764393044646,-163.2130089,0.00016973,2]
[395064714,1764393044655,-1787.38594807,0.00016984,2]
[395064715,1764393044664,-150.0,0.00016986,2]
[395064716,1764393044673,-969.0,0.00016986,2]
[395064717,1764393044682,-500.0,0.00016986,2]
[395064718,1764393044692,-184.03874344,0.00016986,2]
[395064719,1764393044703,-6898.0,0.00016986,2]
[395064720,1764393044713,-158.24612822,0.00016986,2]
[395064721,1764393044722,-150.0,0.00016986,2]
[395064722,1764393044732,-159.58790871,0.00016986,2]
[395064723,1764393044743,-150.00000002,0.00016986,2]
[395064724,1764393044753,-150.00000001,0.00016986,2]
[395064725,1764393044763,-160.9820668,0.00016986,2]
[395064726,1764393044772,-500.0,0.00016989,2]
[395064727,1764393044782,-1787.38594807,0.0001699,2]
[395064728,1764393044792,-1787.38594807,0.0001699,2]
[395064729,1764393044801,-490.62729736,0.00016993,2]
[395064730,1764393044810,-188118.3630553,0.00016994,2]
[395064731,1764393044819,-119514.6553438,0.00016994,2]
[395064732,1764393044828,-529.8592125,0.00016994,2]
[395064733,1764393044838,-64697.198286,0.00016994,2]
[395064734,1764393044847,-4337.7561797,0.00016994,2]
[395064735,1764393044857,-29850.6887931,0.00016994,2]
[395064736,1764393044866,-151.0,0.00016994,2]
[395064737,1764393044875,-151.0,0.00016994,2]
[395064738,1764393044884,-168.0952484,0.00016994,2]
[395064739,1764393044893,-628.704931,0.00016994,2]
[395064740,1764393044903,-628.704931,0.00016994,2]
[395064741,1764393044913,-628.704931,0.00016994,2]
[395064742,1764393044922,-628.704931,0.00016994,2]
[395064743,1764393044931,-930.199004,0.00016994,2]
[395064744,1764393044940,-930.199004,0.00016994,2]
[395064745,1764393044950,-930.199004,0.00016994,2]
[395064746,1764393044959,-930.199004,0.00016994,2]
[395064747,1764393044968,-151.0,0.00016994,2]
[395064748,1764393044978,-151.0,0.00016994,2]
[395064749,1764393044988,-151.0,0.00016994,2]
[395064750,1764393044997,-151.0,0.00016994,2]
[395064751,1764393045007,-151.0,0.00016994,2]
[395064752,1764393045016,-157.119431,0.00016994,2]
[395064753,1764393045025,-712.222638,0.00016994,2]
[395064754,1764393045035,-712.222638,0.00016994,2]
[395064755,1764393045045,-308.492026,0.00016994,2]
[395064756,1764393045054,-712.222638,0.00016994,2]
[395064757,1764393045065,-308.492026,0.00016994,2]
[395064758,1764393045074,-712.222638,0.00016994,2]
[395064759,1764393045084,-308.492026,0.00016994,2]
[395064760,1764393045093,-308.492026,0.00016994,2]
[395064761,1764393045102,-151.0,0.00016994,2]
[395064762,1764393045111,-273.937834,0.00016994,2]
[395064763,1764393045121,-503.802211,0.00016994,2]
[395064764,1764393045130,-396.676447,0.00016994,2]
[395064765,1764393045139,-503.802211,0.00016994,2]
[395064766,1764393045148,-396.676447,0.00016994,2]
[395064767,1764393045157,-503.802211,0.00016994,2]
[395064768,1764393045166,-396.676447,0.00016994,2]
[395064769,1764393045175,-503.802211,0.00016994,2]
[395064770,1764393045184,-396.676447,0.00016994,2]
[395064771,1764393045194,-324.784696,0.00016994,2]
[395064772,1764393045204,-324.784696,0.00016994,2]
[395064773,1764393045213,-324.784696,0.00016994,2]
[395064774,1764393045222,-151.0,0.00016994,2]
[395064775,1764393045232,-324.784696,0.00016994,2]
[395064776,1764393045241,-151.0,0.00016994,2]
[395064777,1764393045250,-151.0,0.00016994,2]
[395064778,1764393045259,-151.0,0.00016994,2]
[395064779,1764393045268,-151.0,0.00016994,2]
[395064780,1764393045277,-1414.976868,0.00016994,2]
[395064781,1764393045286,-1414.976868,0.00016994,2]
[395064782,1764393045295,-151.0,0.00016994,2]
[395064783,1764393045304,-1414.976868,0.00016994,2]
[395064784,1764393045312,-1414.976868,0.00016994,2]
[395064785,1764393045321,-151.0,0.00016994,2]
[395064786,1764393045330,-242.661938,0.00016994,2]
[395064787,1764393045339,-210.512426,0.00016994,2]
[395064788,1764393045348,-210.512426,0.00016994,2]
[395064789,1764393045357,-151.0,0.00016994,2]
[395064790,1764393045367,-151.0,0.00016994,2]
[395064791,1764393045376,-151.0,0.00016994,2]
[395064792,1764393045389,-210.512426,0.00016994,2]
[395064793,1764393045397,-151.0,0.00016994,2]
[395064794,1764393045406,-151.0,0.00016994,2]
[395064795,1764393045416,-151.0,0.00016994,2]
[395064796,1764393045426,-210.512426,0.00016994,2]
[395064797,1764393045435,-151.0,0.00016994,2]
[395064798,1764393045445,-151.0,0.00016994,2]
[395064799,1764393045454,-254.990964,0.00016994,2]
[395064800,1764393045465,-155.488406,0.00016994,2]
[395064801,1764393045474,-1651.053789,0.00016994,2]
[395064802,1764393045483,-155.488406,0.00016994,2]
[395064803,1764393045494,-1651.053789,0.00016994,2]
[395064804,1764393045503,-151.0,0.00016994,2]
[395064805,1764393045513,-155.488406,0.00016994,2]
[395064806,1764393045522,-151.0,0.00016994,2]
[395064807,1764393045531,-1651.053789,0.00016994,2]
[395064808,1764393045540,-155.488406,0.00016994,2]
[395064809,1764393045549,-151.0,0.00016994,2]
[395064810,1764393045559,-1651.053789,0.00016994,2]
[395064811,1764393045568,-1072.315073,0.00016994,2]
[395064812,1764393045578,-1072.315073,0.00016994,2]
[395064813,1764393045587,-1072.315073,0.00016994,2]
[395064814,1764393045597,-1072.315073,0.00016994,2]
[395064815,1764393045607,-279.483985,0.00016994,2]
[395064816,1764393045616,-279.483985,0.00016994,2]
[395064817,1764393045626,-279.483985,0.00016994,2]
[395064818,1764393045635,-279.483985,0.00016994,2]
[395064819,1764393045645,-151.0,0.00016994,2]
[395064820,1764393045654,-151.0,0.00016994,2]
[395064821,1764393045663,-2303.709182,0.00016994,2]
[395064822,1764393045672,-2303.709182,0.00016994,2]
[395064823,1764393045681,-151.0,0.00016994,2]
[395064824,1764393045691,-318.781418,0.00016994,2]
[395064825,1764393045700,-2303.709182,0.00016994,2]
[395064826,1764393045709,-318.781418,0.00016994,2]
[395064827,1764393045719,-2303.709182,0.00016994,2]
[395064828,1764393045728,-318.781418,0.00016994,2]
[395064829,1764393045738,-318.781418,0.00016994,2]
[395064830,1764393045747,-151.0,0.00016994,2]
[395064831,1764393045756,-518.718958,0.00016994,2]
[395064833,1764393045765,-518.718958,0.00016994,2]
[395064835,1764393045774,-182.96164,0.00016994,2]
[395064836,1764393045783,-518.718958,0.00016994,2]
[395064837,1764393045795,-182.96164,0.00016994,2]
[395064838,1764393045804,-518.718958,0.00016994,2]
[395064839,1764393045813,-182.96164,0.00016994,2]
[395064840,1764393045823,-182.96164,0.00016994,2]
[395064841,1764393045833,-836.942127,0.00016994,2]
[395064842,1764393045842,-836.942127,0.00016994,2]
[395064843,1764393045852,-836.942127,0.00016994,2]
[395064844,1764393045863,-836.942127,0.00016994,2]
[395064845,1764393045873,-4456.458855,0.00016994,2]
[395064846,1764393045883,-4456.458855,0.00016994,2]
[395064847,1764393045893,-4456.458855,0.00016994,2]
[395064848,1764393045903,-4456.458855,0.00016994,2]
[395064849,1764393045913,-151.0,0.00016994,2]
[395064850,1764393045922,-151.0,0.00016994,2]
[395064851,1764393045931,-151.0,0.00016994,2]
[395064852,1764393045943,-4566.552698,0.00016994,2]
[395064853,1764393045952,-4566.552698,0.00016994,2]
[395064854,1764393045961,-4566.552698,0.00016994,2]
[395064855,1764393045970,-151.0,0.00016994,2]
[395064856,1764393045979,-4566.552698,0.00016994,2]
[395064857,1764393045988,-213.091126,0.00016994,2]
[395064858,1764393045997,-213.091126,0.00016994,2]
[395064859,1764393046006,-213.091126,0.00016994,2]
[395064860,1764393046015,-159.610231,0.00016994,2]
[395064861,1764393046024,-213.091126,0.00016994,2]
[395064862,1764393046034,-745.671663,0.00016994,2]
[395064863,1764393046043,-745.671663,0.00016994,2]
[395064864,1764393046052,-190.694021,0.00016994,2]
[395064865,1764393046061,-1560.265597,0.00016994,2]
[395064866,1764393046070,-745.671663,0.00016994,2]
[395064867,1764393046079,-190.694021,0.00016994,2]
[395064868,1764393046088,-1560.265597,0.00016994,2]
[395064869,1764393046097,-197.938443,0.00016994,2]
[395064870,1764393046106,-520.545903,0.00016994,2]
[395064871,1764393046115,-745.671663,0.00016994,2]
[395064872,1764393046125,-190.694021,0.00016994,2]
[395064873,1764393046134,-1560.265597,0.00016994,2]
[395064874,1764393046143,-197.938443,0.00016994,2]
[395064875,1764393046151,-520.545903,0.00016994,2]
[395064876,1764393046160,-151.0,0.00016994,2]
[395064877,1764393046169,-2119.63146,0.00016994,2]
[395064878,1764393046178,-1560.265597,0.00016994,2]
[395064879,1764393046188,-197.938443,0.00016994,2]
[395064880,1764393046198,-520.545903,0.00016994,2]
[395064881,1764393046207,-190.694021,0.00016994,2]
[395064882,1764393046216,-151.0,0.00016994,2]
[395064883,1764393046226,-2119.63146,0.00016994,2]